fUST/lending_fUST_20260518
["ID","MTS","AMOUNT","RATE_DAILY","PERIOD"]
[422542995,1779047442000,-500.0,0.00010958,2]
[422542996,1779047442000,-553.69469546,0.00010958,2]
[422542985,1779047442000,-500.0,0.00010958,2]
[422542988,1779047442000,-500.0,0.00010958,2]
[422542993,1779047442000,-943.06,0.00010958,2]
[422542898,1779047442000,-500.0,0.00010958,2]
[422542990,1779047442000,-5133.47,0.00010958,2]
[422542978,1779047442000,-2750.41,0.00010958,2]
[422542942,1779047442000,-922.66,0.00010958,2]
[422542970,1779047442000,-657.96,0.00010958,2]
[422542938,1779047442000,-1552.88,0.00010958,2]
[422542884,1779047442000,-2145.7,0.00010958,2]
[422542945,1779047442000,-615.82,0.00010958,2]
[422542886,1779047442000,-500.0,0.00010958,2]
[422542896,1779047442000,-500.0,0.00010958,2]
[422542895,1779047442000,-500.0,0.00010958,2]
[422542882,1779047442000,-2273.68,0.00010958,2]
[422542887,1779047442000,-500.0,0.00010958,2]
[422542891,1779047442000,-668.99,0.00010958,2]
[422542912,1779047442000,-591.29975486,0.00010958,2]
[422542911,1779047442000,-586.11,0.00010958,2]
[422542907,1779047442000,-500.0,0.00010958,2]
[422542909,1779047442000,-500.0,0.00010958,2]
[422542905,1779047442000,-500.0,0.00010958,2]
[422542916,1779047442000,-661.43,0.00010958,2]
[422542889,1779047442000,-500.0,0.00010958,2]
[422542954,1779047442000,-500.0,0.00010958,2]
[422542936,1779047442000,-500.0,0.00010958,2]
[422542892,1779047442000,-500.0,0.00010958,2]
[422542934,1779047442000,-500.0,0.00010958,2]
[422542919,1779047442000,-554.71,0.00010958,2]
[422542918,1779047442000,-500.0,0.00010958,2]
[422542932,1779047442000,-845.39,0.00010958,2]
[422542923,1779047442000,-500.0,0.00010958,2]
[422542921,1779047442000,-500.0,0.00010958,2]
[422542929,1779047442000,-500.0,0.00010958,2]
[422542927,1779047442000,-508.84,0.00010958,2]
[422542914,1779047442000,-500.0,0.00010958,2]
[422542931,1779047442000,-500.0,0.00010958,2]
[422543050,1779047443000,-500.0,0.00010958,2]
[422543044,1779047443000,-905.81,0.00010958,2]
[422543043,1779047443000,-782.51,0.00010958,2]
[422543038,1779047443000,-500.0,0.00010958,2]
[422543037,1779047443000,-728.73,0.00010958,2]
[422543040,1779047443000,-506.2121201,0.00010958,2]
[422543045,1779047443000,-500.0,0.00010958,2]
[422543047,1779047443000,-212.22935967,0.00010958,2]
[422543049,1779047443000,-621.5,0.00010958,2]
[422543036,1779047443000,-583.61756546,0.00010958,2]
[422543048,1779047443000,-664.58,0.00010958,2]
[422543051,1779047443000,-500.0,0.00010958,2]
[422543042,1779047443000,-506.95498713,0.00010958,2]
[422543063,1779047443000,-776.3,0.00010958,2]
[422543069,1779047443000,-500.0,0.00010958,2]
[422543060,1779047443000,-500.0,0.00010958,2]
[422543057,1779047443000,-500.0,0.00010958,2]
[422543062,1779047443000,-500.0,0.00010958,2]
[422543059,1779047443000,-500.0,0.00010958,2]
[422543052,1779047443000,-500.0,0.00010958,2]
[422543054,1779047443000,-500.0,0.00010958,2]
[422543061,1779047443000,-1537.95,0.00010958,2]
[422543058,1779047443000,-2911.77,0.00010958,2]
[422543055,1779047443000,-951.01,0.00010958,2]
[422543056,1779047443000,-1134.01,0.00010958,2]
[422543064,1779047443000,-535.29585333,0.00010958,2]
[422543065,1779047443000,-746.85,0.00010958,2]
[422543068,1779047443000,-637.14,0.00010958,2]
[422543034,1779047443000,-343.60744933,0.00010958,2]
[422543053,1779047443000,-500.0,0.00010958,2]
[422543046,1779047443000,-689.2,0.00010958,2]
[422543001,1779047443000,-500.0,0.00010958,2]
[422543031,1779047443000,-500.0,0.00010958,2]
[422543066,1779047443000,-4862.15,0.00010958,2]
[422543002,1779047443000,-500.0,0.00010958,2]
[422543005,1779047443000,-500.0,0.00010958,2]
[422542999,1779047443000,-500.0,0.00010958,2]
[422542998,1779047443000,-603.33,0.00010958,2]
[422543004,1779047443000,-1333.79,0.00010958,2]
[422543006,1779047443000,-500.0,0.00010958,2]
[422543007,1779047443000,-933.56,0.00010958,2]
[422543008,1779047443000,-500.0,0.00010958,2]
[422543019,1779047443000,-724.98,0.00010958,2]
[422543010,1779047443000,-601.3887,0.00010958,2]
[422543020,1779047443000,-1395.4,0.00010958,2]
[422543016,1779047443000,-1106.78,0.00010958,2]
[422543018,1779047443000,-605.2405963,0.00010958,2]
[422543009,1779047443000,-500.0,0.00010958,2]
[422543011,1779047443000,-500.0,0.00010958,2]
[422543017,1779047443000,-1058.62,0.00010958,2]
[422543029,1779047443000,-500.0,0.00010958,2]
[422543028,1779047443000,-830.94,0.00010958,2]
[422543024,1779047443000,-2519.54,0.00010958,2]
[422543026,1779047443000,-1586.83,0.00010958,2]
[422543023,1779047443000,-500.0,0.00010958,2]
[422543027,1779047443000,-723.48,0.00010958,2]
[422543035,1779047443000,-679.77,0.00010958,2]
[422543025,1779047443000,-584.85,0.00010958,2]
[422543033,1779047443000,-2037.13,0.00010958,2]
[422543032,1779047443000,-500.0,0.00010958,2]
[422543021,1779047443000,-500.0,0.00010958,2]
[422543022,1779047443000,-817.12,0.00010958,2]
[422543014,1779047443000,-500.0,0.00010958,2]
[422543013,1779047443000,-5200.59,0.00010958,2]
[422543030,1779047443000,-500.0,0.00010958,2]
[422543076,1779047443000,-500.0,0.00010958,2]
[422543097,1779047443000,-683.68,0.00010958,2]
[422543074,1779047443000,-500.0,0.00010958,2]
[422543115,1779047443000,-553.28099922,0.00010958,2]
[422543121,1779047443000,-1688.17,0.00010958,2]
[422543123,1779047443000,-500.0,0.00010958,2]
[422543120,1779047443000,-500.0,0.00010958,2]
[422543113,1779047443000,-806.35,0.00010958,2]
[422543112,1779047443000,-500.0,0.00010958,2]
[422543111,1779047443000,-500.0,0.00010958,2]
[422543110,1779047443000,-500.0,0.00010958,2]
[422543114,1779047443000,-344.3401256,0.00010958,2]
[422543119,1779047443000,-688.5,0.00010958,2]
[422543122,1779047443000,-500.0,0.00010958,2]
[422543116,1779047443000,-500.0,0.00010958,2]
[422543117,1779047443000,-500.0,0.00010958,2]
[422543128,1779047443000,-464.37470301,0.00010958,2]
[422543118,1779047443000,-500.0,0.00010958,2]
[422543125,1779047443000,-1466.55,0.00010958,2]
[422543126,1779047443000,-500.0,0.00010958,2]
[422543124,1779047443000,-500.0,0.00010958,2]
[422543129,1779047443000,-500.0,0.00010958,2]
[422543130,1779047443000,-500.0,0.00010958,2]
[422543134,1779047443000,-500.0,0.00010958,2]
[422543136,1779047443000,-1817.91,0.00010958,2]
[422543135,1779047443000,-500.0,0.00010958,2]
[422543131,1779047443000,-500.0,0.00010958,2]
[422543132,1779047443000,-500.0,0.00010958,2]
[422543138,1779047443000,-618.06,0.00010958,2]
[422543139,1779047443000,-500.0,0.00010958,2]
[422543141,1779047443000,-2430.89,0.00010958,2]
[422543137,1779047443000,-500.0,0.00010958,2]
[422543140,1779047443000,-511.01,0.00010958,2]
[422543127,1779047443000,-500.0,0.00010958,2]
[422543100,1779047443000,-500.0,0.00010958,2]
[422543133,1779047443000,-4538.62,0.00010958,2]
[422543102,1779047443000,-500.0,0.00010958,2]
[422543103,1779047443000,-629.73402619,0.00010958,2]
[422543070,1779047443000,-500.0,0.00010958,2]
[422543073,1779047443000,-525.7,0.00010958,2]
[422543072,1779047443000,-500.0,0.00010958,2]
[422543077,1779047443000,-544.05,0.00010958,2]
[422543067,1779047443000,-500.0,0.00010958,2]
[422543071,1779047443000,-730.77,0.00010958,2]
[422543078,1779047443000,-500.0,0.00010958,2]
[422543081,1779047443000,-1231.99,0.00010958,2]
[422543080,1779047443000,-699.27,0.00010958,2]
[422543082,1779047443000,-500.0,0.00010958,2]
[422543091,1779047443000,-500.0,0.00010958,2]
[422543084,1779047443000,-500.0,0.00010958,2]
[422543086,1779047443000,-500.0,0.00010958,2]
[422543087,1779047443000,-500.0,0.00010958,2]
[422543075,1779047443000,-500.0,0.00010958,2]
[422543089,1779047443000,-676.14,0.00010958,2]
[422543095,1779047443000,-500.0,0.00010958,2]
[422543085,1779047443000,-500.0,0.00010958,2]
[422543099,1779047443000,-500.0,0.00010958,2]
[422543101,1779047443000,-711.63,0.00010958,2]
[422543094,1779047443000,-500.0,0.00010958,2]
[422543107,1779047443000,-500.0,0.00010958,2]
[422543109,1779047443000,-1538.47,0.00010958,2]
[422543108,1779047443000,-534.42,0.00010958,2]
[422543106,1779047443000,-500.0,0.00010958,2]
[422543104,1779047443000,-500.0,0.00010958,2]
[422543090,1779047443000,-500.0,0.00010958,2]
[422543088,1779047443000,-1010.26,0.00010958,2]
[422543079,1779047443000,-500.0,0.00010958,2]
[422543092,1779047443000,-755.95,0.00010958,2]
[422543105,1779047443000,-500.0,0.00010958,2]
[422543168,1779047444000,-3992.32,0.00010958,2]
[422543176,1779047444000,-728.34,0.00010958,2]
[422543169,1779047444000,-500.0,0.00010958,2]
[422543167,1779047444000,-645.86,0.00010958,2]
[422543171,1779047444000,-500.0,0.00010958,2]
[422543172,1779047444000,-500.0,0.00010958,2]
[422543170,1779047444000,-555.81883216,0.00010958,2]
[422543166,1779047444000,-500.0,0.00010958,2]
[422543186,1779047444000,-500.0,0.00010958,2]
[422543183,1779047444000,-500.0,0.00010958,2]
[422543177,1779047444000,-4602.4,0.00010958,2]
[422543175,1779047444000,-500.0,0.00010958,2]
[422543184,1779047444000,-500.0,0.00010958,2]
[422543179,1779047444000,-500.0,0.00010958,2]
[422543185,1779047444000,-4522.6,0.00010958,2]
[422543162,1779047444000,-500.0,0.00010958,2]
[422543181,1779047444000,-889.28,0.00010958,2]
[422543178,1779047444000,-500.0,0.00010958,2]
[422543182,1779047444000,-500.0,0.00010958,2]
[422543180,1779047444000,-500.0,0.00010958,2]
[422543187,1779047444000,-595.02684597,0.00010958,2]
[422543165,1779047444000,-225.88208004,0.00010958,2]
[422543151,1779047444000,-564.89,0.00010958,2]
[422543174,1779047444000,-828.69,0.00010958,2]
[422543189,1779047444000,-1960.76,0.00010958,2]
[422543148,1779047444000,-500.0,0.00010958,2]
[422543143,1779047444000,-2316.31,0.00010958,2]
[422543146,1779047444000,-1391.2,0.00010958,2]
[422543145,1779047444000,-11308.62,0.00010958,2]
[422543147,1779047444000,-500.0,0.00010958,2]
[422543149,1779047444000,-902.45,0.00010958,2]
[422543144,1779047444000,-500.0,0.00010958,2]
[422543160,1779047444000,-500.0,0.00010958,2]
[422543152,1779047444000,-500.0,0.00010958,2]
[422543156,1779047444000,-500.0,0.00010958,2]
[422543161,1779047444000,-500.0,0.00010958,2]
[422543155,1779047444000,-500.0,0.00010958,2]
[422543150,1779047444000,-529.4,0.00010958,2]
[422543153,1779047444000,-500.0,0.00010958,2]
[422543159,1779047444000,-500.0,0.00010958,2]
[422543158,1779047444000,-519.35,0.00010958,2]
[422543154,1779047444000,-500.0,0.00010958,2]
[422543157,1779047444000,-2365.63,0.00010958,2]
[422543163,1779047444000,-5051.77,0.00010958,2]
[422543173,1779047444000,-554.72314948,0.00010958,2]
[422543164,1779047444000,-500.0,0.00010958,2]
[422543142,1779047444000,-500.0,0.00010958,2]
[422543200,1779047444000,-3151.32,0.00010958,2]
[422543199,1779047444000,-500.0,0.00010958,2]
[422543227,1779047444000,-1516.57,0.00010958,2]
[422543228,1779047444000,-500.0,0.00010958,2]
[422543216,1779047444000,-3599.73,0.00010958,2]
[422543218,1779047444000,-500.0,0.00010958,2]
[422543219,1779047444000,-500.0,0.00010958,2]
[422543224,1779047444000,-500.0,0.00010958,2]
[422543223,1779047444000,-1401.13,0.00010958,2]
[422543220,1779047444000,-500.0,0.00010958,2]
[422543221,1779047444000,-500.0,0.00010958,2]
[422543225,1779047444000,-3967.22,0.00010958,2]
[422543222,1779047444000,-500.0,0.00010958,2]
[422543226,1779047444000,-3896.53,0.00010958,2]
[422543230,1779047444000,-500.0,0.00010958,2]
[422543231,1779047444000,-2881.85,0.00010958,2]
[422543233,1779047444000,-500.0,0.00010958,2]
[422543232,1779047444000,-903.05,0.00010958,2]
[422543235,1779047444000,-24841.63005113,0.00010958,2]
[422543234,1779047444000,-500.0,0.00010958,2]
[422543236,1779047444000,-19324.05634671,0.00010958,2]
[422543237,1779047444000,-9670.10511955,0.00010958,2]
[422543201,1779047444000,-500.0,0.00010958,2]
[422543217,1779047444000,-684.7,0.00010958,2]
[422543211,1779047444000,-500.0,0.00010958,2]
[422543229,1779047444000,-13256.15,0.00010958,2]
[422543207,1779047444000,-1125.47,0.00010958,2]
[422543188,1779047444000,-500.0,0.00010958,2]
[422543210,1779047444000,-500.0,0.00010958,2]
[422543197,1779047444000,-500.0,0.00010958,2]
[422543190,1779047444000,-500.0,0.00010958,2]
[422543193,1779047444000,-649.52,0.00010958,2]
[422543194,1779047444000,-679.8,0.00010958,2]
[422543192,1779047444000,-500.0,0.00010958,2]
[422543198,1779047444000,-500.0,0.00010958,2]
[422543191,1779047444000,-500.0,0.00010958,2]
[422543196,1779047444000,-500.0,0.00010958,2]
[422543195,1779047444000,-500.0,0.00010958,2]
[422543202,1779047444000,-500.0,0.00010958,2]
[422543205,1779047444000,-1041.86,0.00010958,2]
[422543204,1779047444000,-630.36,0.00010958,2]
[422543212,1779047444000,-513.31056449,0.00010958,2]
[422543209,1779047444000,-500.0,0.00010958,2]
[422543208,1779047444000,-7868.86,0.00010958,2]
[422543213,1779047444000,-855.3,0.00010958,2]
[422543214,1779047444000,-3862.7,0.00010958,2]
[422543215,1779047444000,-3369.08,0.00010958,2]
[422543203,1779047444000,-1274.27,0.00010958,2]
[422543206,1779047444000,-792.09,0.00010958,2]
[422543287,1779047445000,-500.0,0.00010958,2]
[422543281,1779047445000,-2196.03,0.00010958,2]
[422543279,1779047445000,-500.0,0.00010958,2]
[422543282,1779047445000,-500.0,0.00010958,2]
[422543275,1779047445000,-500.0,0.00010958,2]
[422543277,1779047445000,-710.43,0.00010958,2]
[422543276,1779047445000,-500.0,0.00010958,2]
[422543280,1779047445000,-1133.46,0.00010958,2]
[422543272,1779047445000,-500.0,0.00010958,2]
[422543274,1779047445000,-500.0,0.00010958,2]
[422543286,1779047445000,-2444.54,0.00010958,2]
[422543283,1779047445000,-500.0,0.00010958,2]
[422543278,1779047445000,-500.0,0.00010958,2]
[422543291,1779047445000,-431.04670638,0.00010958,2]
[422543238,1779047445000,-2977.59848261,0.00010958,2]
[422543290,1779047445000,-500.0,0.00010958,2]
[422543289,1779047445000,-3383.55,0.00010958,2]
[422543295,1779047445000,-500.0,0.00010958,2]
[422543285,1779047445000,-500.0,0.00010958,2]
[422543305,1779047445000,-500.0,0.00010958,2]
[422543288,1779047445000,-1687.06,0.00010958,2]
[422543297,1779047445000,-500.0,0.00010958,2]
[422543293,1779047445000,-920.72,0.00010958,2]
[422543292,1779047445000,-500.0,0.00010958,2]
[422543294,1779047445000,-500.0,0.00010958,2]
[422543299,1779047445000,-500.0,0.00010958,2]
[422543302,1779047445000,-3180.45,0.00010958,2]
[422543303,1779047445000,-500.0,0.00010958,2]
[422543284,1779047445000,-1369.16,0.00010958,2]
[422543296,1779047445000,-500.0,0.00010958,2]
[422543273,1779047445000,-8872.46,0.00010958,2]
[422543247,1779047445000,-763.31,0.00010958,2]
[422543267,1779047445000,-500.0,0.00010958,2]
[422543239,1779047445000,-2022.40151739,0.00010958,2]
[422543242,1779047445000,-8340.11977312,0.00010958,2]
[422543244,1779047445000,-500.0,0.00010958,2]
[422543240,1779047445000,-348.24848261,0.00010958,2]
[422543243,1779047445000,-9107.54,0.00010958,2]
[422543241,1779047445000,-120.83022688,0.00010958,2]
[422543246,1779047445000,-500.0,0.00010958,2]
[422543256,1779047445000,-502.6,0.00010958,2]
[422543257,1779047445000,-287.5091667,0.00010958,2]
[422543245,1779047445000,-500.0,0.00010958,2]
[422543248,1779047445000,-10971.29,0.00010958,2]
[422543249,1779047445000,-784.28,0.00010958,2]
[422543254,1779047445000,-500.0,0.00010958,2]
[422543253,1779047445000,-500.0,0.00010958,2]
[422543265,1779047445000,-508.34,0.00010958,2]
[422543255,1779047445000,-500.0,0.00010958,2]
[422543252,1779047445000,-500.0,0.00010958,2]
[422543251,1779047445000,-934.33,0.00010958,2]
[422543259,1779047445000,-500.0,0.00010958,2]
[422543261,1779047445000,-2500.74,0.00010958,2]
[422543271,1779047445000,-500.0,0.00010958,2]
[422543269,1779047445000,-2248.85,0.00010958,2]
[422543260,1779047445000,-500.0,0.00010958,2]
[422543258,1779047445000,-500.0,0.00010958,2]
[422543270,1779047445000,-2111.7,0.00010958,2]
[422543263,1779047445000,-375.90830941,0.00010958,2]
[422543268,1779047445000,-4783.42,0.00010958,2]
[422543262,1779047445000,-4673.71,0.00010958,2]
[422543264,1779047445000,-500.0,0.00010958,2]
[422543266,1779047445000,-500.0,0.00010958,2]
[422543250,1779047445000,-500.0,0.00010958,2]
[422543301,1779047445000,-8336.5,0.00010958,2]
[422543298,1779047445000,-500.0,0.00010958,2]
[422543313,1779047445000,-309.0,0.00010959,3]
[422543353,1779047445000,-152.119068,0.00011232,2]
[422543348,1779047445000,-152.119068,0.00011232,2]
[422543343,1779047445000,-152.119068,0.00011232,2]
[422543341,1779047445000,-152.119068,0.00011232,2]
[422543349,1779047445000,-152.119068,0.00011232,2]
[422543352,1779047445000,-152.119068,0.00011232,2]
[422543342,1779047445000,-152.119068,0.00011232,2]
[422543345,1779047445000,-152.119068,0.00011232,2]
[422543346,1779047445000,-152.119068,0.00011232,2]
[422543344,1779047445000,-152.119068,0.00011232,2]
[422543347,1779047445000,-152.119068,0.00011232,2]
[422543351,1779047445000,-152.119068,0.00011232,2]
[422543350,1779047445000,-152.119068,0.00011232,2]
[422543354,1779047445000,-152.119068,0.00011232,2]
[422543337,1779047445000,-152.119068,0.00011232,2]
[422543366,1779047445000,-152.119068,0.00011232,2]
[422543356,1779047445000,-152.119068,0.00011232,2]
[422543367,1779047445000,-152.119068,0.00011232,2]
[422543357,1779047445000,-152.119068,0.00011232,2]
[422543358,1779047445000,-152.119068,0.00011232,2]
[422543359,1779047445000,-152.119068,0.00011232,2]
[422543365,1779047445000,-152.119068,0.00011232,2]
[422543360,1779047445000,-152.119068,0.00011232,2]
[422543362,1779047445000,-152.119068,0.00011232,2]
[422543361,1779047445000,-152.119068,0.00011232,2]
[422543364,1779047445000,-152.119068,0.00011232,2]
[422543363,1779047445000,-152.119068,0.00011232,2]
[422543368,1779047445000,-152.119068,0.00011232,2]
[422543369,1779047445000,-152.119068,0.00011232,2]
[422543311,1779047445000,-486.03896962,0.00010959,7]
[422543355,1779047445000,-152.119068,0.00011232,2]
[422543339,1779047445000,-152.119068,0.00011232,2]
[422543306,1779047445000,-2124.42,0.00010958,2]
[422543333,1779047445000,-152.119068,0.00011232,2]
[422543336,1779047445000,-152.119068,0.00011232,2]
[422543304,1779047445000,-500.0,0.00010958,2]
[422543312,1779047445000,-1555.0,0.00010959,2]
[422543310,1779047445000,-324.02597975,0.00010959,7]
[422543307,1779047445000,-522.88,0.00010958,2]
[422543308,1779047445000,-3585.19,0.00010958,2]
[422543309,1779047445000,-162.01298987,0.00010959,7]
[422543316,1779047445000,-200.0,0.00011,2]
[422543314,1779047445000,-3077.83,0.00010959,2]
[422543325,1779047445000,-648.05195949,0.00011216,7]
[422543320,1779047445000,-151.0,0.00011,2]
[422543315,1779047445000,-15000.0,0.00010959,2]
[422543321,1779047445000,-151.0,0.00011,2]
[422543317,1779047445000,-396.812255,0.00011,2]
[422543323,1779047445000,-151.0,0.00011,2]
[422543300,1779047445000,-500.0,0.00010958,2]
[422543326,1779047445000,-177.3656,0.00011232,2]
[422543338,1779047445000,-152.119068,0.00011232,2]
[422543328,1779047445000,-1286.8724,0.00011232,2]
[422543331,1779047445000,-500.0,0.00011232,2]
[422543332,1779047445000,-500.0,0.00011232,2]
[422543318,1779047445000,-151.0,0.00011,2]
[422543334,1779047445000,-152.119068,0.00011232,2]
[422543327,1779047445000,-1930.3114,0.00011232,2]
[422543330,1779047445000,-919.1995,0.00011232,2]
[422543329,1779047445000,-2297.9843,0.00011232,2]
[422543340,1779047445000,-152.119068,0.00011232,2]
[422543324,1779047445000,-373.87778965,0.00011216,7]
[422543319,1779047445000,-151.0,0.00011,2]
[422543322,1779047445000,-151.0,0.00011,2]
[422543335,1779047445000,-152.119068,0.00011232,2]
[422543414,1779047446000,-151.642195,0.00011232,2]
[422543410,1779047446000,-151.642195,0.00011232,2]
[422543412,1779047446000,-151.642195,0.00011232,2]
[422543409,1779047446000,-151.642195,0.00011232,2]
[422543411,1779047446000,-151.642195,0.00011232,2]
[422543403,1779047446000,-156.079757,0.00011232,2]
[422543401,1779047446000,-156.079757,0.00011232,2]
[422543406,1779047446000,-156.079757,0.00011232,2]
[422543408,1779047446000,-156.079757,0.00011232,2]
[422543407,1779047446000,-156.079757,0.00011232,2]
[422543413,1779047446000,-151.642195,0.00011232,2]
[422543405,1779047446000,-156.079757,0.00011232,2]
[422543417,1779047446000,-151.642195,0.00011232,2]
[422543426,1779047446000,-151.642195,0.00011232,2]
[422543418,1779047446000,-151.642195,0.00011232,2]
[422543416,1779047446000,-151.642195,0.00011232,2]
[422543419,1779047446000,-151.642195,0.00011232,2]
[422543420,1779047446000,-151.642195,0.00011232,2]
[422543421,1779047446000,-151.642195,0.00011232,2]
[422543422,1779047446000,-151.642195,0.00011232,2]
[422543424,1779047446000,-151.642195,0.00011232,2]
[422543425,1779047446000,-151.642195,0.00011232,2]
[422543423,1779047446000,-151.642195,0.00011232,2]
[422543427,1779047446000,-151.642195,0.00011232,2]
[422543428,1779047446000,-151.642195,0.00011232,2]
[422543431,1779047446000,-151.642195,0.00011232,2]
[422543396,1779047446000,-156.079757,0.00011232,2]
[422543415,1779047446000,-151.642195,0.00011232,2]
[422543400,1779047446000,-156.079757,0.00011232,2]
[422543385,1779047446000,-152.106118,0.00011232,2]
[422543404,1779047446000,-156.079757,0.00011232,2]
[422543373,1779047446000,-152.119068,0.00011232,2]
[422543377,1779047446000,-152.119068,0.00011232,2]
[422543376,1779047446000,-152.119068,0.00011232,2]
[422543375,1779047446000,-152.119068,0.00011232,2]
[422543371,1779047446000,-152.119068,0.00011232,2]
[422543379,1779047446000,-152.119068,0.00011232,2]
[422543370,1779047446000,-152.119068,0.00011232,2]
[422543378,1779047446000,-152.119068,0.00011232,2]
[422543380,1779047446000,-152.119068,0.00011232,2]
[422543374,1779047446000,-152.119068,0.00011232,2]
[422543372,1779047446000,-152.119068,0.00011232,2]
[422543381,1779047446000,-152.119068,0.00011232,2]
[422543383,1779047446000,-152.119068,0.00011232,2]
[422543432,1779047446000,-151.642195,0.00011232,2]
[422543382,1779047446000,-152.119068,0.00011232,2]
[422543386,1779047446000,-152.106118,0.00011232,2]
[422543388,1779047446000,-156.079757,0.00011232,2]
[422543384,1779047446000,-152.106118,0.00011232,2]
[422543392,1779047446000,-156.079757,0.00011232,2]
[422543393,1779047446000,-156.079757,0.00011232,2]
[422543394,1779047446000,-156.079757,0.00011232,2]
[422543391,1779047446000,-156.079757,0.00011232,2]
[422543387,1779047446000,-152.106118,0.00011232,2]
[422543390,1779047446000,-156.079757,0.00011232,2]
[422543398,1779047446000,-156.079757,0.00011232,2]
[422543399,1779047446000,-156.079757,0.00011232,2]
[422543402,1779047446000,-156.079757,0.00011232,2]
[422543397,1779047446000,-156.079757,0.00011232,2]
[422543429,1779047446000,-151.642195,0.00011232,2]
[422543389,1779047446000,-156.079757,0.00011232,2]
[422543430,1779047446000,-151.642195,0.00011232,2]
[422543467,1779047446000,-151.642195,0.00011232,2]
[422543472,1779047446000,-151.642195,0.00011232,2]
[422543482,1779047446000,-163.210465,0.00011232,2]
[422543483,1779047446000,-163.210465,0.00011232,2]
[422543484,1779047446000,-163.210465,0.00011232,2]
[422543498,1779047446000,-500.0,0.00011232,2]
[422543471,1779047446000,-151.642195,0.00011232,2]
[422543475,1779047446000,-151.642195,0.00011232,2]
[422543474,1779047446000,-151.642195,0.00011232,2]
[422543480,1779047446000,-163.210465,0.00011232,2]
[422543476,1779047446000,-151.642195,0.00011232,2]
[422543481,1779047446000,-163.210465,0.00011232,2]
[422543478,1779047446000,-163.210465,0.00011232,2]
[422543477,1779047446000,-163.210465,0.00011232,2]
[422543486,1779047446000,-166.320783,0.00011232,2]
[422543497,1779047446000,-585.52,0.00011232,2]
[422543496,1779047446000,-187.182937,0.00011232,2]
[422543487,1779047446000,-166.320783,0.00011232,2]
[422543485,1779047446000,-163.210465,0.00011232,2]
[422543491,1779047446000,-166.320783,0.00011232,2]
[422543488,1779047446000,-166.320783,0.00011232,2]
[422543490,1779047446000,-166.320783,0.00011232,2]
[422543494,1779047446000,-166.320783,0.00011232,2]
[422543489,1779047446000,-166.320783,0.00011232,2]
[422543493,1779047446000,-166.320783,0.00011232,2]
[422543495,1779047446000,-500.0,0.00011232,2]
[422543492,1779047446000,-166.320783,0.00011232,2]
[422543465,1779047446000,-151.642195,0.00011232,2]
[422543466,1779047446000,-151.642195,0.00011232,2]
[422543479,1779047446000,-163.210465,0.00011232,2]
[422543463,1779047446000,-151.642195,0.00011232,2]
[422543440,1779047446000,-151.642195,0.00011232,2]
[422543434,1779047446000,-151.642195,0.00011232,2]
[422543464,1779047446000,-151.642195,0.00011232,2]
[422543444,1779047446000,-151.642195,0.00011232,2]
[422543438,1779047446000,-151.642195,0.00011232,2]
[422543442,1779047446000,-151.642195,0.00011232,2]